{"text_format":"1","workbook":"xlsx","n_sheets":4,"sheets":["Ülesanded","Uudised","Sheet1","Kaader"],"not_rendered":{"charts":0,"images":0,"macros":1,"external_links":1,"defined_names":15,"comments":0,"pivot_tables":0},"unopened":[],"bounds":{"document_bytes":16777216,"sheet_cells":100000,"rows_first":2000,"rows_last":500,"rows_between":2000,"halvings":0,"cell_chars":16384,"cell_head_chars":4096},"cells_cut":0,"cells_raw":0,"read":"whole","date_system":"1900"}

{"sheet":"Ülesanded","index":0,"n_rows":0,"n_cols":0,"rows_kept":0,"cut":false,"hidden":false,"merged":[]}

{"sheet":"Uudised","index":1,"n_rows":117,"n_cols":7,"rows_kept":117,"cut":false,"hidden":false,"merged":[]}
["Aeg","Uudis",null,null,"21.10.2025"]
["23:25:00","Tartu linnapeaks jääb Klaas, volikogu esimees tuleb Isamaast"]
["23:10:00","Naiste jalgpallikoondise koosseisus toimus Balti turniiri eel muudatus"]
["22:43:00","Reinsalu: Eesti inimeste suhtes ei ole aus teha otsuseid ülejala"]
["22:41:00","Palumetsa koduklubi pääses Slovakkia karikavõistlustel edasi"]
["22:30:00","ETV spordisaade, 21. oktoober",null,null,null,null,"Uudis"]
["22:08:00","Tugevas Türgi liigas väljakule saanud Kullerkann: emotsioon oli vinge!",null,null,null,null,"*Tallinn*"]
["21:54:00","Aktuaalne kaamera kell 21:00"]
["21:29:00","Uued trollid hakkavad Tallinnas sõitma järgmisel suvel"]
["21:29:00","Kolmapäev tuleb selge ja vähese pilvisusega"]
["21:22:00","Kirt: ma ei saa pakkuda Soome korüfeede teadmisi, küll aga tippspordi kogemust"]
["21:18:00","Läti poliitkemplused koguvad tuure"]
["21:07:00","Euroopa Komisjon ETS2 loobuda ei kavatse"]
["21:06:00","Saaremaal plaanib Isamaa võimuliitu EKRE ja Keskerakonnaga"]
["21:06:00","Sukles tunnustas Isamaa head tööd Haapsalu valimistel"]
["20:43:00","Suusaliidu tegevjuht: ei olnud kindlust, kummale poole otsus langeb"]
["20:26:00","FIS-i otsus jätab Venemaa suusatajad taliolümpialt eemale"]
["19:57:00","Sappineni kübaratrikk tõi Florale kohustusliku võidu"]
["19:40:00","Ossinovski: Tallinna linnapea tuleb kas Keskerakonnast või SDE-st"]
["19:35:00","Sikorski: kui Putini lennuk peaks läbima Poola õhuruumi, sunnitakse see maanduma"]
["19:31:00","Kalev/Cramo kaotas Aserbaidžaanis teise mängu lisaajal"]
["19:12:00","Aktuaalne kaamera kell 18:30"]
["19:04:00","Merz langes sisserändevastase kõnepruugi tõttu kriitika alla"]
["18:50:00","Tartu linnas käivad koalitsioonikõnelused Isamaa ja reformierakonna vahel"]
["18:50:00","Kumu Dokumentaali sarjas linastub film Frida Kahlost"]
["18:47:00","Lajal tegi venelase vastu elu põnevaks, aga pääses ikkagi teise ringi"]
["18:45:00","Tallinnas algab noorele vaatajale mõeldud teatrifestival Naks"]
["18:43:00","Isamaa võib soovida Tallinna võimuleppesse riiklikke teemasid"]
["18:41:00","Riigikogu opositsioon kritiseerib hasartmängumaksu langetamist"]
["18:40:00","Reformierakond pooldab Tallinna võimuliitu Isamaa, sotside ja parempoolsetega"]
["18:40:00","Päevakaja (21.10.2025 18:00:00)"]
["18:07:00","Isamaa ja Reformierakond ihkavad mõlemad Tartus linnapea kohta"]
["17:54:00","Islandilt leiti esmakordselt sääski"]
["17:46:00","Karelson kaotas U-23 MM-il poolfinaalis tuttavale ukrainlasele"]
["17:22:00","Aktuaalne kaamera kell 17:00"]
["17:17:00","Nõmme Kalju sõlmis meeskonna kapteniga uue lepingu"]
["17:00:00","Euroopa Liit kaalub etanooli klassifitseerimist ohtlikuks aineks"]
["16:51:00","Riik laenas 3,2 protsendiga 500 miljonit"]
["16:45:00","Teinegi Itaalia jalgpalliklubi läheb maffia mõju tõttu kohtu hoole alla"]
["16:42:00","Tallinna Ülikooli kirjandusklubi Üdi alustab kirjandusfestivaliga Röögatus!"]
["16:32:00","Eesti keeles ilmus David Lynchi elulooraamat \"Unistamisruum\""]
["16:25:00","Politico: EL on saavutamas kokkulepet Venemaa külmutatud varade kasutamiseks"]
["16:24:00","Reformierakonna Tallinna piirkonna juhatus astus tagasi"]
["16:13:00","Jefimova ujus USA-s karjääri esimesed Eesti rekordid jardibasseinis"]
["15:59:00","Michal: Tallinnas tuleks igal juhul nelikliit ära teha"]
["15:45:00","Parempoolsed lükkasid Rakveres tagasi Isamaa kutse koalitsiooni"]
["15:41:00","Eesti veemotosportlased tõid Itaaliast koju kaks maailmameistritiitlit"]
["15:36:00","Uus võrkkestaliides võimaldab vaegnägijatel jälle lugeda"]
["15:33:00","Kuuse ja Hanso Atlandi ületuse kirja pannud Kaio: see tegi neist paremad inimesed"]
["15:25:00","Raadiouudised (21.10.2025 15:00:00)"]
["15:24:00","Remonditööd piiravad Aegviidu rongiliini sõidusagedust"]
["15:08:00","Leedu kaitseminister teatas otsusest tagasi astuda"]
["14:54:00","Hiiumaa sotsid kohtuvad kõigi võimalike koalitsioonipartneritega"]
["14:51:00","Reali read hõrenevad El Clasico eel"]
["14:36:00","Simmo Saar: järjekordne kinnisidee – kõik probleemid lahendab rong"]
["14:33:00","DEW8 ja Genka andsid välja filmi \"Uus raha\" muusika"]
["14:31:00","Kell 20 \"Impulsis\": Rosin, Poudel, Kinkar ja Haugas netikelmustest"]
["14:20:00","Kell 21.40 \"Esimeses stuudios\" Urmas Reinsalu"]
["14:16:00","\"Otse uudistemajast\" kell 11: Eesti Panga presidendikandidaadid"]
["14:10:00","Tallinn tellis auditi Maarjamäe obeliski seisukorra hindamiseks"]
["14:05:00","Glinka alustas Challengeri turniiri kiire võiduga"]
["14:02:00","USA ametnik: Trump ei plaani Putiniga lähiajal kohtuda"]
["14:01:00","Harri Tiido: Soome valitsuse tulevikuraportist"]
["13:37:00","Slovakkia kohus mõistis peaministri tulistajale 21-aastase vangistuse"]
["13:37:00","Fitnessmodell Mia Mulenok krooniti maailmameistriks"]
["13:10:00","\"Kirjandusministri juures\" hooaja avasaates on külas Paul-Eerik Rummo"]
["13:04:00","PÖFF-il toimub Eeva Mägi uue mängufilmi \"Mo Papa\" maailmaesilinastus"]
["13:00:00","Mõõnav Nottingham palkas pragmaatilise stiili poolest tuntud Dyche'i"]
["12:55:00","Raadiouudised (21.10.2025 12:00:00)"]
["12:52:00","Prantsusmaa ekspresident Sarkozy asus vanglakaristust kandma"]
["12:50:00","EKRE ütles Pärnus Isamaale ära ja saab viieliikmelises koalitsioonis linnapea koha"]
["12:50:00","Lauri Lest toob lavale kontsertetenduse \"Esemete Orkester\""]
["12:34:00","GALERII | Euroopa tugevaim noorte maadlusvõistlus tõi kolm kulda Eestisse"]
["12:32:00","Lauri: Keskerakond keeldub tunnistamast neil olnud korruptsiooniprobleemi"]
["12:30:00","\"Impulss\": netikelmi õnge võib sattuda ka digitark"]
["12:27:00","Raag: kui neljandale korrusele kõndimine ajab hingeldama, hakkab kelluke helisema"]
["12:12:00","Parlament nimetas Sanae Takaichi Jaapani esimeseks naispeaministriks"]
["11:59:00","NHL-is langes viimane kaotuseta meeskond"]
["11:43:00","Saarts: uus Tallinna nelikliit oleks palju pingeterohkem kui eelmine"]
["11:29:00","Eesti Filharmoonia Kammerkoor alustab turneed USA-s ja Hiinas"]
["11:27:00","Pildid: Rakvere Teatris algasid lavastuse \"Sügissonaat\" proovid"]
["11:25:00","KUULA | \"Võimla\" küsis: kas Eestile on vaja filmi Mati Alaverist?"]
["11:24:00","Arst: meeste reieluukaela murd on kaks korda surmavam kui naistel"]
["11:22:00","Sinefiil | \"Lihtsalt üks õnnetus\" toob Iraani sisepoliitilised probleemid rahvusvahelise tähelepanu keskmesse"]
["11:16:00","Igoneni ja Vetkali klubid pidid vastaste nappi paremust tunnistama"]
["11:03:00","Henri Christofer Aavik võitis Saksamaal toimunud dirigentide konkursil peapreemia"]
["10:59:00","Pennie: olen saatusele tänulik, et esimesel korral lavakasse sisse ei saanud"]
["10:49:00","Paavo Järvi: kui meil pole kultuuri, siis pole meil midagi kaitsta"]
["10:46:00","Riigiprokuratuur taotleb Grünthalilt saadikupuutumatuse võtmist"]
["10:45:00","Seitsmenda mängu võitnud Blue Jays lõpetas 32 aasta pikkuse ootuse"]
["10:35:00","Valimisliit Plaan B plaanib riigikogu valimistele minna erakonnana"]
["10:32:00","Uber laseb juhtidel ooteajal tehisintellekti õpetada"]
["10:30:00","Keskerakond kaalub Kohtla-Järvel koalitsiooni moodustamist"]
["10:30:00","Poliitreklaami kontrolliks luuakse ekspertkomisjon"]
["10:14:00","Stubb: Trump on 100-protsendiliselt pühendunud NATO liitlaste kaitsmisele"]
["10:09:00","ERR-i teleuudised kell 9:00"]
["10:08:00","Esiliigas mängiv Peetri jättis kuuekordse karikavõitja TalTechi geimivõiduta"]
["09:56:00","Raina Loom: lapsed võiksid saada haridussüsteemi rahastamise tuumaks"]
["09:50:00","Raadiouudised (21.10.2025 09:00:00)"]
["09:44:00","Hiilgava hooaja teinud kaluriküla klubi tuli Rootsi jalgpallimeistriks"]
["09:39:00","Kambja vallas haiguspuhangu tekitanud veereostuse põhjus jäigi leidmata"]
["09:38:00","Kairi Kaldoja: kui päriselu ei mahu paragrahvi sisse"]
["09:14:00","Õpilasuurija aitas hõlbustada viiruspõhiste ravimkandjate loomist"]
["09:11:00","Nahkhiired helendavad ultravioleti all rohekalt"]
["09:07:00","Kellerteater kogub uueks põnevikuks Tinderi lugusid"]
["09:07:00","Kolmapäeval algab Tallinnas Endla tunnelite ehitus"]
["09:03:00","Eesti sangpommisportlased võitsid MM-il suure hunniku medaleid"]
["08:51:00","ERR-i teleuudised kell 7:00"]
["08:39:00","Male suurmeister suri vaid 29 aasta vanuselt"]
["08:31:00","Poliitreklaami kontrolliks luuakse ekspertkomisjon"]
["08:11:00","Von der Leyen üritab tuua kõhklevad riigid 2040. aasta kliimaeesmärgi taha"]
["08:11:00","Ehitushinnad tõusid mullu kolmanda kvartaliga võrreldes 1,7 protsenti"]
["08:01:00","Omniva taastab lähinädalail pakkide tarne USA-sse"]
["07:44:00","Reinsalu jäi Keskerakonna kutse suhtes äraootavale seisukohale"]
["06:48:00","Valimisliit Plaan B plaanib riigikogu valimistele minna erakonnana"]
["06:40:00","Bulgaaria avaldas valmisolekut avada oma õhuruum Putini lennukile"]
["05:55:00","Sõja 1336. päev: Ukraina droonirünnak peatas Vene naftatehase töö"]

{"sheet":"Sheet1","index":2,"n_rows":12,"n_cols":2,"rows_kept":12,"cut":false,"hidden":false,"merged":[]}
["Aeg","Uudis"]
["21:29:00","Uued trollid hakkavad Tallinnas sõitma järgmisel suvel"]
["19:40:00","Ossinovski: Tallinna linnapea tuleb kas Keskerakonnast või SDE-st"]
["18:45:00","Tallinnas algab noorele vaatajale mõeldud teatrifestival Naks"]
["18:43:00","Isamaa võib soovida Tallinna võimuleppesse riiklikke teemasid"]
["18:40:00","Reformierakond pooldab Tallinna võimuliitu Isamaa, sotside ja parempoolsetega"]
["16:42:00","Tallinna Ülikooli kirjandusklubi Üdi alustab kirjandusfestivaliga Röögatus!"]
["16:24:00","Reformierakonna Tallinna piirkonna juhatus astus tagasi"]
["15:59:00","Michal: Tallinnas tuleks igal juhul nelikliit ära teha"]
["14:10:00","Tallinn tellis auditi Maarjamäe obeliski seisukorra hindamiseks"]
["11:43:00","Saarts: uus Tallinna nelikliit oleks palju pingeterohkem kui eelmine"]
["09:07:00","Kolmapäeval algab Tallinnas Endla tunnelite ehitus"]

{"sheet":"Kaader","index":3,"n_rows":111,"n_cols":12,"rows_kept":111,"cut":false,"hidden":false,"merged":[]}
[null,null,null,null,null,{"$f":"_xlfn.FORMULATEXT(F4)","v":"=INT((TODAY()-D4)/365,25)"}]
[]
[null,"Nimi","Sugu","Sünniaeg","Sünnikuu","Vanus","Osakond","Amet","Palk",null,null,"2. Töölehel Kaader on Töötajate andmed"]
[null,"Hanno Pedak","mees","1981-01-24",{"$f":"MONTH(D4)","v":1},{"$f":"INT((TODAY()-D4)/365.25)","v":44},"Transport","autojuht",1160,null,null,"Salvestage makrod:"]
[null,"Jaan Noormets","mees","1993-01-07",{"$f":"MONTH(D5)","v":1},{"$f":"INT((TODAY()-D5)/365.25)","v":32},"Müük","diiler",1120,null,null,"1. lisab vahesumma read, milles kuvatakse sünnipäevalaste arv kuude lõikes"]
[null,"Jaan Laubre","mees","1988-01-16",{"$f":"MONTH(D6)","v":1},{"$f":"INT((TODAY()-D6)/365.25)","v":37},"Finants","raamatupidaja",920,null,null,"2. lisab vahesumma read, milles kuvatakse keskmine palk ja keskmine vanus osakondade lõikes"]
[null,"Evi Sarapik","naine","1958-01-06",{"$f":"MONTH(D7)","v":1},{"$f":"INT((TODAY()-D7)/365.25)","v":67},"Finants","raamatupidaja",1170,null,null,"3. taastab esialgse andmetabeli seisu."]
[null,"Leida Jaanus","naine","1955-01-15",{"$f":"MONTH(D8)","v":1},{"$f":"INT((TODAY()-D8)/365.25)","v":70},"Tootmine","tööline",1010,null,null,"Makrode käivitamiseks paigutage töölehele nupud."]
[null,"Malle Põldmaa","naine","1975-01-06",{"$f":"MONTH(D9)","v":1},{"$f":"INT((TODAY()-D9)/365.25)","v":50},"Tootmine","tööline",1370]
[null,null,null,null,"1 Count",null,null,{"$f":"SUBTOTAL(3,H4:H9)","v":6}]
[null,"Arnold Merilaid","mees","1966-02-22",{"$f":"MONTH(D11)","v":2},{"$f":"INT((TODAY()-D11)/365.25)","v":59},"Transport","autojuht",1960]
[null,"Ando Nõmmik","mees","1989-02-20",{"$f":"MONTH(D12)","v":2},{"$f":"INT((TODAY()-D12)/365.25)","v":36},"Transport","autojuht",2300]
[null,"Malle Kivioja","naine","1981-02-03",{"$f":"MONTH(D13)","v":2},{"$f":"INT((TODAY()-D13)/365.25)","v":44},"Finants","juhataja",1020]
[null,"Anton Meister","mees","1955-02-08",{"$f":"MONTH(D14)","v":2},{"$f":"INT((TODAY()-D14)/365.25)","v":70},"Ladu","juhataja",950]
[null,"Erki Arsenov","mees","1959-02-12",{"$f":"MONTH(D15)","v":2},{"$f":"INT((TODAY()-D15)/365.25)","v":66},"Ladu","komplekteerija",1150]
[null,"Einar Laanepõld","mees","1972-02-12",{"$f":"MONTH(D16)","v":2},{"$f":"INT((TODAY()-D16)/365.25)","v":53},"Ladu","tööline",1310]
[null,"Madis Paulus","mees","1985-02-21",{"$f":"MONTH(D17)","v":2},{"$f":"INT((TODAY()-D17)/365.25)","v":40},"Tootmine","tööline",1100]
[null,"Irma Piirsalu","naine","1987-02-13",{"$f":"MONTH(D18)","v":2},{"$f":"INT((TODAY()-D18)/365.25)","v":38},"Tootmine","tööline",1160]
[null,null,null,null,"2 Count",null,null,{"$f":"SUBTOTAL(3,H11:H18)","v":8}]
[null,"Boris Küünemäe","mees","1987-03-13",{"$f":"MONTH(D20)","v":3},{"$f":"INT((TODAY()-D20)/365.25)","v":38},"Transport","autojuht",1450]
[null,"Aadu Malva","mees","1970-03-06",{"$f":"MONTH(D21)","v":3},{"$f":"INT((TODAY()-D21)/365.25)","v":55},"Transport","autojuht",1320]
[null,"Aare Raudsepp","mees","1991-03-01",{"$f":"MONTH(D22)","v":3},{"$f":"INT((TODAY()-D22)/365.25)","v":34},"Müük","diiler",1090]
[null,"Kristiina Oks","naine","1970-03-15",{"$f":"MONTH(D23)","v":3},{"$f":"INT((TODAY()-D23)/365.25)","v":55},"Transport","dispetser",1220]
[null,"Aadu Heinlo","mees","1992-03-27",{"$f":"MONTH(D24)","v":3},{"$f":"INT((TODAY()-D24)/365.25)","v":33},"Tootmine","lukksepp",1500]
[null,"Tarmo Müller","mees","1979-03-05",{"$f":"MONTH(D25)","v":3},{"$f":"INT((TODAY()-D25)/365.25)","v":46},"Müük","müügijuht",970]
[null,"Helen Aigro","naine","1997-03-03",{"$f":"MONTH(D26)","v":3},{"$f":"INT((TODAY()-D26)/365.25)","v":28},"Müük","sekretär",1250]
[null,"Laine Eek","naine","1993-03-11",{"$f":"MONTH(D27)","v":3},{"$f":"INT((TODAY()-D27)/365.25)","v":32},"Majandus","sekretär",1120]
[null,"Aigi Härm","naine","1980-03-22",{"$f":"MONTH(D28)","v":3},{"$f":"INT((TODAY()-D28)/365.25)","v":45},"Ost","sekretär",1390]
[null,"Jana Kaal","naine","1980-03-18",{"$f":"MONTH(D29)","v":3},{"$f":"INT((TODAY()-D29)/365.25)","v":45},"Müük","sekretär",1020]
[null,"Annika Paju","naine","1991-03-18",{"$f":"MONTH(D30)","v":3},{"$f":"INT((TODAY()-D30)/365.25)","v":34},"Majandus","sekretär",1350]
[null,"Juulia Tubin","naine","1964-03-02",{"$f":"MONTH(D31)","v":3},{"$f":"INT((TODAY()-D31)/365.25)","v":61},"Müük","sekretär",780]
[null,"Andrus Koort","mees","1972-03-05",{"$f":"MONTH(D32)","v":3},{"$f":"INT((TODAY()-D32)/365.25)","v":53},"Tootmine","treial",1120]
[null,"Margus Maasalu","mees","1962-03-04",{"$f":"MONTH(D33)","v":3},{"$f":"INT((TODAY()-D33)/365.25)","v":63},"Tootmine","tööline",1240]
[null,"Madis Maasalu","mees","1955-03-11",{"$f":"MONTH(D34)","v":3},{"$f":"INT((TODAY()-D34)/365.25)","v":70},"Tootmine","tööline",2290]
[null,"Hanno Pajusaar","mees","1990-03-27",{"$f":"MONTH(D35)","v":3},{"$f":"INT((TODAY()-D35)/365.25)","v":35},"Tootmine","tööline",1370]
[null,"Selma Parre","naine","1979-03-20",{"$f":"MONTH(D36)","v":3},{"$f":"INT((TODAY()-D36)/365.25)","v":46},"Ladu","tööline",1360]
[null,null,null,null,"3 Count",null,null,{"$f":"SUBTOTAL(3,H20:H36)","v":17}]
[null,"Kristjan Mägi","mees","1989-04-16",{"$f":"MONTH(D38)","v":4},{"$f":"INT((TODAY()-D38)/365.25)","v":36},"Müük","diiler",1450]
[null,"Reijo Okspuu","mees","1992-04-15",{"$f":"MONTH(D39)","v":4},{"$f":"INT((TODAY()-D39)/365.25)","v":33},"Müük","diiler",2200]
[null,"Elvi Berk","naine","1983-04-06",{"$f":"MONTH(D40)","v":4},{"$f":"INT((TODAY()-D40)/365.25)","v":42},"Transport","dispetser",1060]
[null,"Karl Salu","mees","1960-04-19",{"$f":"MONTH(D41)","v":4},{"$f":"INT((TODAY()-D41)/365.25)","v":65},"Ladu","dispetser",1450]
[null,"Faina Lepp","naine","1982-04-01",{"$f":"MONTH(D42)","v":4},{"$f":"INT((TODAY()-D42)/365.25)","v":43},"Finants","jurist",1520]
[null,"Airi Põld","naine","1969-04-10",{"$f":"MONTH(D43)","v":4},{"$f":"INT((TODAY()-D43)/365.25)","v":56},"Ladu","komplekteerija",1220]
[null,"Marko Erikson","mees","1953-04-06",{"$f":"MONTH(D44)","v":4},{"$f":"INT((TODAY()-D44)/365.25)","v":72},"Tootmine","meister",1150]
[null,"Erika Bachmann","naine","1983-04-07",{"$f":"MONTH(D45)","v":4},{"$f":"INT((TODAY()-D45)/365.25)","v":42},"Müük","müügijuht",1460]
[null,"Ene Elmik","naine","1983-04-24",{"$f":"MONTH(D46)","v":4},{"$f":"INT((TODAY()-D46)/365.25)","v":42},"Müük","müügijuht",1100]
[null,"Einar Ehala","mees","1954-04-24",{"$f":"MONTH(D47)","v":4},{"$f":"INT((TODAY()-D47)/365.25)","v":71},"Tootmine","treial",1200]
[null,"Aadu Elson","mees","1973-04-09",{"$f":"MONTH(D48)","v":4},{"$f":"INT((TODAY()-D48)/365.25)","v":52},"Tootmine","tööline",1150]
[null,null,null,null,"4 Count",null,null,{"$f":"SUBTOTAL(3,H38:H48)","v":11}]
[null,"Margus Roosimägi","mees","1983-05-21",{"$f":"MONTH(D50)","v":5},{"$f":"INT((TODAY()-D50)/365.25)","v":42},"Transport","autojuht",1100]
[null,"Tiina Rajamäe","naine","1983-05-16",{"$f":"MONTH(D51)","v":5},{"$f":"INT((TODAY()-D51)/365.25)","v":42},"Transport","dispetser",1250]
[null,"Kristel Astok","naine","1969-05-09",{"$f":"MONTH(D52)","v":5},{"$f":"INT((TODAY()-D52)/365.25)","v":56},"Finants","raamatupidaja",1200]
[null,"Vilma Eesmaa","naine","1985-05-28",{"$f":"MONTH(D53)","v":5},{"$f":"INT((TODAY()-D53)/365.25)","v":40},"Finants","raamatupidaja",2240]
[null,"Sirje Härm","naine","1955-05-14",{"$f":"MONTH(D54)","v":5},{"$f":"INT((TODAY()-D54)/365.25)","v":70},"Ost","sekretär",1260]
[null,"Erna Eek","naine","1990-05-24",{"$f":"MONTH(D55)","v":5},{"$f":"INT((TODAY()-D55)/365.25)","v":35},"Tootmine","tööline",1320]
[null,"Argo Salu","mees","1960-05-29",{"$f":"MONTH(D56)","v":5},{"$f":"INT((TODAY()-D56)/365.25)","v":65},"Tootmine","tööline",1250]
[null,null,null,null,"5 Count",null,null,{"$f":"SUBTOTAL(3,H50:H56)","v":7}]
[null,"Paul Naaber","mees","1977-06-21",{"$f":"MONTH(D58)","v":6},{"$f":"INT((TODAY()-D58)/365.25)","v":48},"Transport","autojuht",1390]
[null,"Aasa Randla","naine","1952-06-15",{"$f":"MONTH(D59)","v":6},{"$f":"INT((TODAY()-D59)/365.25)","v":73},"Majandus","koristaja",1240]
[null,"Eevald Parts","mees","1988-06-17",{"$f":"MONTH(D60)","v":6},{"$f":"INT((TODAY()-D60)/365.25)","v":37},"Tootmine","lukksepp",1420]
[null,"Arnold Norak","mees","1990-06-29",{"$f":"MONTH(D61)","v":6},{"$f":"INT((TODAY()-D61)/365.25)","v":35},"Tootmine","tööline",1220]
[null,"Kaspar Veesimaa","mees","1965-06-11",{"$f":"MONTH(D62)","v":6},{"$f":"INT((TODAY()-D62)/365.25)","v":60},"Tootmine","tööline",1400]
[null,null,null,null,"6 Count",null,null,{"$f":"SUBTOTAL(3,H58:H62)","v":5}]
[null,"Aarne Oks","mees","1961-07-14",{"$f":"MONTH(D64)","v":7},{"$f":"INT((TODAY()-D64)/365.25)","v":64},"Transport","autojuht",1390]
[null,"Tiina Toomsalu","naine","1957-07-22",{"$f":"MONTH(D65)","v":7},{"$f":"INT((TODAY()-D65)/365.25)","v":68},"Majandus","koristaja",1180]
[null,"Ahti Tubin","mees","1970-07-06",{"$f":"MONTH(D66)","v":7},{"$f":"INT((TODAY()-D66)/365.25)","v":55},"Tootmine","treial",1180]
[null,"Tiina Markus","naine","1992-07-01",{"$f":"MONTH(D67)","v":7},{"$f":"INT((TODAY()-D67)/365.25)","v":33},"Ladu","tööline",1200]
[null,"Kersti Miller","naine","1991-07-23",{"$f":"MONTH(D68)","v":7},{"$f":"INT((TODAY()-D68)/365.25)","v":34},"Tootmine","tööline",1310]
[null,null,null,null,"7 Count",null,null,{"$f":"SUBTOTAL(3,H64:H68)","v":5}]
[null,"Ahto Danilov","mees","1979-08-25",{"$f":"MONTH(D70)","v":8},{"$f":"INT((TODAY()-D70)/365.25)","v":46},"Transport","autojuht",1320]
[null,"Mare Eesmaa","naine","1984-08-16",{"$f":"MONTH(D71)","v":8},{"$f":"INT((TODAY()-D71)/365.25)","v":41},"Majandus","juhataja",1160]
[null,"Kristjan Jürimäe","mees","1981-08-04",{"$f":"MONTH(D72)","v":8},{"$f":"INT((TODAY()-D72)/365.25)","v":44},"Tootmine","lukksepp",3000]
[null,"Ene Burmeister","naine","1982-08-21",{"$f":"MONTH(D73)","v":8},{"$f":"INT((TODAY()-D73)/365.25)","v":43},"Finants","raamatupidaja",1280]
[null,"Faina Kukk","naine","1992-08-29",{"$f":"MONTH(D74)","v":8},{"$f":"INT((TODAY()-D74)/365.25)","v":33},"Müük","sekretär",1000]
[null,"Evelin Põld","naine","1970-08-21",{"$f":"MONTH(D75)","v":8},{"$f":"INT((TODAY()-D75)/365.25)","v":55},"Majandus","sekretär",1080]
[null,null,null,null,"8 Count",null,null,{"$f":"SUBTOTAL(3,H70:H75)","v":6}]
[null,"Hendrik Kanter","mees","1954-09-01",{"$f":"MONTH(D77)","v":9},{"$f":"INT((TODAY()-D77)/365.25)","v":71},"Tootmine","juhataja",1450]
[null,"Aarne Mikson","mees","1984-09-01",{"$f":"MONTH(D78)","v":9},{"$f":"INT((TODAY()-D78)/365.25)","v":41},"Ost","juhataja",1080]
[null,"Mirja Bergmann","naine","1953-09-11",{"$f":"MONTH(D79)","v":9},{"$f":"INT((TODAY()-D79)/365.25)","v":72},"Majandus","koristaja",1190]
[null,"Aare Marmor","mees","1957-09-23",{"$f":"MONTH(D80)","v":9},{"$f":"INT((TODAY()-D80)/365.25)","v":68},"Tootmine","meister",850]
[null,"Kaivo Mets","mees","1973-09-01",{"$f":"MONTH(D81)","v":9},{"$f":"INT((TODAY()-D81)/365.25)","v":52},"Tootmine","meister",1330]
[null,"Valve Mäesalu","naine","1970-09-01",{"$f":"MONTH(D82)","v":9},{"$f":"INT((TODAY()-D82)/365.25)","v":55},"Ost","sekretär",1200]
[null,"Riho Kuusk","mees","1952-09-14",{"$f":"MONTH(D83)","v":9},{"$f":"INT((TODAY()-D83)/365.25)","v":73},"Tootmine","tööline",1110]
[null,"Meelis Petrov","mees","1992-09-21",{"$f":"MONTH(D84)","v":9},{"$f":"INT((TODAY()-D84)/365.25)","v":33},"Tootmine","tööline",1170]
[null,null,null,null,"9 Count",null,null,{"$f":"SUBTOTAL(3,H77:H84)","v":8}]
[null,"Reijo Müürsepp","mees","1962-10-11",{"$f":"MONTH(D86)","v":10},{"$f":"INT((TODAY()-D86)/365.25)","v":63},"Tootmine","lukksepp",1400]
[null,"Katy Veesimaa","naine","1975-10-17",{"$f":"MONTH(D87)","v":10},{"$f":"INT((TODAY()-D87)/365.25)","v":50},"Finants","referent",1370]
[null,"Erki Lepiksoo","mees","1981-10-31",{"$f":"MONTH(D88)","v":10},{"$f":"INT((TODAY()-D88)/365.25)","v":43},"Tootmine","treial",1150]
[null,"Reijo Bauman","mees","1965-10-04",{"$f":"MONTH(D89)","v":10},{"$f":"INT((TODAY()-D89)/365.25)","v":60},"Tootmine","tööline",2420]
[null,"Kaivo Berk","mees","1955-10-19",{"$f":"MONTH(D90)","v":10},{"$f":"INT((TODAY()-D90)/365.25)","v":70},"Ladu","tööline",2780]
[null,null,null,null,"10 Count",null,null,{"$f":"SUBTOTAL(3,H86:H90)","v":5}]
[null,"Maarja Ambros","naine","1977-11-13",{"$f":"MONTH(D92)","v":11},{"$f":"INT((TODAY()-D92)/365.25)","v":47},"Ost","sekretär",1250]
[null,"Hilja Raid","naine","1987-11-03",{"$f":"MONTH(D93)","v":11},{"$f":"INT((TODAY()-D93)/365.25)","v":37},"Müük","sekretär",1150]
[null,"Meelis Kalju","mees","1992-11-16",{"$f":"MONTH(D94)","v":11},{"$f":"INT((TODAY()-D94)/365.25)","v":32},"Ladu","tööline",1240]
[null,"Heli Lind","naine","1981-11-11",{"$f":"MONTH(D95)","v":11},{"$f":"INT((TODAY()-D95)/365.25)","v":43},"Tootmine","tööline",1220]
[null,"Eino Luige","mees","1962-11-16",{"$f":"MONTH(D96)","v":11},{"$f":"INT((TODAY()-D96)/365.25)","v":62},"Tootmine","tööline",930]
[null,"Kustav Salu","mees","1982-11-20",{"$f":"MONTH(D97)","v":11},{"$f":"INT((TODAY()-D97)/365.25)","v":42},"Tootmine","tööline",1170]
[null,null,null,null,"11 Count",null,null,{"$f":"SUBTOTAL(3,H92:H97)","v":6}]
[null,"Erno Salumets","mees","1981-12-17",{"$f":"MONTH(D99)","v":12},{"$f":"INT((TODAY()-D99)/365.25)","v":43},"Müük","juhataja",960]
[null,"Sirje Kreen","naine","1955-12-27",{"$f":"MONTH(D100)","v":12},{"$f":"INT((TODAY()-D100)/365.25)","v":69},"Tootmine","tööline",1090]
[null,"Reijo Meigas","mees","1956-12-18",{"$f":"MONTH(D101)","v":12},{"$f":"INT((TODAY()-D101)/365.25)","v":68},"Ladu","tööline",1070]
[null,"Aarne Norak","mees","1975-12-07",{"$f":"MONTH(D102)","v":12},{"$f":"INT((TODAY()-D102)/365.25)","v":49},"Tootmine","tööline",900]
[null,null,null,null,"12 Count",null,null,{"$f":"SUBTOTAL(3,H99:H102)","v":4}]
[null,"Aadu Pulk","mees","1953-10-16",{"$f":"MONTH(D104)","v":10},{"$f":"INT((TODAY()-D104)/365.25)","v":72},"Transport","valvur",1290]
[null,null,null,null,"10 Count",null,null,{"$f":"SUBTOTAL(3,H104:H104)","v":1}]
[null,null,null,null,"Grand Count",null,null,{"$f":"SUBTOTAL(3,H4:H104)","v":89}]
[]
[]
[]
[]
[null,null,null,null,null,{"$f":"SUBTOTAL(1,F4:F110)","v":50.19101123595506},"Grand Average",null,{"$f":"SUBTOTAL(1,I4:I110)","v":1310.7865168539327}]